Cogmind - Beta 13 @@@ ROGUE MODE // 2024.04.12 @ 13:15:26 Player: graour Result: Self-destructed Performance ------------- Evolutions (1) 500 Regions Visited (2) 400 Robots Destroyed (20) 100 Value Destroyed (496) 496 Prototype IDs (1) 20 Alien Tech Used (0) 0 Bonus (0) 0 TOTAL SCORE: 1516 Bonus ------- None Cogmind --------- Core Integrity 96/400 Matter 292/300 Energy 100/100 System Corruption 9% Temperature Cool (0) Movement Core (1700) Ox33 Location -9/Materials Parts ------- > --- POWER (1) -------- (None) > --- PROPULSION (4) --- (None) > --- UTILITY (2) ------ Large Storage Unit Huge Storage Unit > --- WEAPON (2) ------- (None) > --- INVENTORY (25) --- Small Storage Unit Large Matter Pod (150) Sensor Array Seismic Detector Targeting Computer Melee Analysis Suite Mini Grenade Launcher Peak State ------------ > --- POWER ------------ Light Ion Engine > --- PROPULSION ------- Light Treads Light Treads Light Treads > --- UTILITY ---------- Huge Storage Unit Light Armor Plating > --- WEAPON ----------- Small Laser Improved Assault Rifle > --- INVENTORY -------- Light Ion Engine Wheel Compact Wheel Small Storage Unit Large Storage Unit Large Matter Pod Sensor Array Seismic Detector Targeting Computer Small Laser Mini Grenade Launcher [Rating: 11] Favorites ----------- Power Light Ion Engine Engine Light Ion Engine Propulsion Light Treads Treads Light Treads Wheel Wheel Utility Light Armor Plating Storage Large Storage Unit Protection Light Armor Plating Weapon Small Laser Energy Gun Small Laser Ballistic Gun Light Assault Rifle Build | -11 -10 -9 ------- Run | Yrd Mat Mat Slots Evolved 2 | . . 2 Power . | . . . Propulsion 2 | . . 2 Utility . | . . . Weapon . | . . . Parts Attached 29 | 6 10 13 Power 2 | 1 . 1 Engine 2 | 1 . 1 Core . | . . . Reactor . | . . . Propulsion 12 | 2 5 5 Treads 10 | 2 5 3 Leg . | . . . Wheel 2 | . . 2 Hover . | . . . Flight . | . . . Utility 10 | 1 5 4 Device . | . . . Storage 6 | 1 2 3 Processor . | . . . Hackware . | . . . Protection 4 | . 3 1 Artifact . | . . . Weapon 5 | 2 . 3 Energy Gun 3 | 2 . 1 Energy Cannon . | . . . Ballistic Gun 2 | . . 2 Ballistic Cannon . | . . . Launcher . | . . . Special Weapon . | . . . Impact Weapon . | . . . Slashing Weapon . | . . . Piercing Weapon . | . . . Special Melee Weapon . | . . . Unidentified Prototypes 1 | . . 1 Parts Lost 13 | . . 13 Power 2 | . . 2 Propulsion 5 | . . 5 Utility 2 | . . 2 Weapon 4 | . . 4 Highest Loss Streak 5 | . . 5 To Critical Strikes 2 | . . 2 Average Slot Usage (%) 90 | . 98 79 Engine 12 | . 14 9 Treads 26 | . 27 25 Wheel 1 | . . 3 Storage 13 | . 14 13 Protection 9 | . 12 6 Energy Gun 23 | . 28 18 Ballistic Gun 1 | . . 3 Naked Turns . | . . . Heaviest Build 105 | 11 29 105 Greatest Support 60 | 40 40 60 Greatest Overweight (x) 34 | . . 34 Average Overweight (x) . | . . . Largest Inventory Capacity 25 | 8 15 25 Average Capacity 14 | 7 11 20 Most Carried 13 | 6 10 13 Average Carried 8 | 3 8 9 Final Capacity 25 | 8 15 25 Final Carried 10 | 6 10 7 Class Distribution -------------------- 100% | Mutant Dominant Class ---------------- Mutant | -10/Materials Mutant | -9/Materials Resources | -11 -10 -9 ----------- Run | Yrd Mat Mat Matter Collected 649 | 253 104 292 Remotely . | . . . Salvage Created 623 | . 92 531 Parts 34 | . 11 23 Haulers Intercepted . | . . . Recyclers Shooed 1 | . . 1 Parts Field Recycled . | . . . Retrieved Matter . | . . . Parts Self-Destructed . | . . . Prevented . | . . . Kills | -11 -10 -9 ------- Run | Yrd Mat Mat Combat Hostiles Destroyed 19 | . 5 14 Guns 18 | . 5 13 Classes Destroyed 5 | . 2 3 Builder 1 | . 1 . Swarmer 8 | . 5 3 Grunt 9 | . . 9 Duelist 1 | . . 1 Sentry 1 | . . 1 Best Kill Streak 5 | . 3 5 Combat Bots Only 9 | . 3 9 Max Kills in Single Turn 1 | . 1 1 Gunslinging . | . . . Exploded . | . . . Melee . | . . . Uniques/NPCs Destroyed . | . . . Combat | -11 -10 -9 -------- Run | Yrd Mat Mat Hostile Shots Fired 133 | . 26 107 Missed 29 | . 9 20 Damage Taken 1530 | . 145 1385 Core 356 | . 52 304 Absorbed by Shields . | . . . Core Remaining (%) 89 | 100 79 . Volleys Fired 75 | . 16 59 Largest 2 | . 2 2 Hottest 90 | . 90 90 Shots Fired 138 | . 32 106 Gun 138 | . 32 106 Cannon . | . . . Launcher . | . . . Special . | . . . Kinetic 21 | . . 21 Thermal 117 | . 32 85 Explosive . | . . . Electromagnetic . | . . . Robot Hit Streak 11 | . 3 11 Robot Miss Streak 4 | . 3 4 Penetration Max . | . . . Secondary Targets . | . . . Shots Hit Robots 85 | . 13 72 Core Hits 32 | . 7 25 Critical Kills . | . . . Critical Parts Destroyed . | . . . Critical Strikes 4 | . . 4 Burn 4 | . . 4 Melee Attacks . | . . . Impact . | . . . Slashing . | . . . Piercing . | . . . Sneak Attacks . | . . . Combat Hostiles . | . . . Follow-up Attacks . | . . . Damage Inflicted 1050 | . 161 889 Guns 1046 | . 161 885 Cannons . | . . . Explosions . | . . . Melee . | . . . Ramming 4 | . . 4 Kinetic 238 | . . 238 Thermal 808 | . 161 647 Explosive . | . . . Electromagnetic . | . . . Impact . | . . . Slashing . | . . . Piercing . | . . . Highest Corruption 9 | . . 9 Average Corruption 7 | . . 7 Corruption Purged . | . . . Corruption Blocked . | . . . Effects 1 | . . 1 Matter Fused 1 | . . 1 Overload Shots . | . . . Overflow Damage . | . . . Projectiles . | . . . Explosions . | . . . Melee . | . . . Knockbacks . | . . . Impact . | . . . Kinetic . | . . . Secondary . | . . . Self-Inflicted Damage . | . . . Shots . | . . . Rammed 3 | . . 3 Targets Rammed 3 | . . 3 Kicked . | . . . Crushed . | . . . Highest Temperature 273 | . 273 258 Average Temperature 87 | . 85 88 Received Heat Transfer 378 | . . 378 Siege Activations . | . . . Robots Corrupted . | . . . Combat Hostiles . | . . . Parts Fried . | . . . Impact Corruptions . | . . . Robots Melted 1 | . . 1 Combat Hostiles 1 | . . 1 Parts Melted 5 | . . 5 Heat Transferred 2359 | . 410 1949 Parts Sabotaged . | . . . Parts Stolen . | . . . Parts Stripped . | . . . Power Chain Reactions . | . . . Alert | -11 -10 -9 ------- Run | Yrd Mat Mat Peak Influence 294 | . 150 294 Initial 63 | . . 63 Average 95 | . 67 146 Maximum Alert Level 1 | . . 1 Low Security (%) 90 | 100 100 78 Level 1 9 | . . 21 Level 2 . | . . . Level 3 . | . . . Level 4 . | . . . Level 5 . | . . . High Security . | . . . Max Security . | . . . Squads Dispatched 3 | . 1 2 Investigation . | . . . Extermination . | . . . Reinforcement 3 | . 1 2 Assault . | . . . Garrison . | . . . Intercept . | . . . Searches Triggered . | . . . Construction Impeded . | . . . Haulers Reinforced . | . . . Active Scanning Responses . | . . . Cargo Convoy Interrupts . | . . . Stealth | -11 -10 -9 --------- Run | Yrd Mat Mat Distress Signals 5 | . 1 4 Communications Jammed . | . . . Distress Signals . | . . . Times Spotted 40 | . 15 25 Peak Tracking Total 7 | . 6 7 Tactical Retreats 4 | . 2 2 Traps | -11 -10 -9 ------- Run | Yrd Mat Mat Traps Triggered 3 | . 3 . Indirectly . | . . . Trap Hack Attempts . | . . . Triggered . | . . . Disarmed . | . . . Reprogrammed . | . . . Reused . | . . . Traps Extracted . | . . . Installed . | . . . Triggered . | . . . Machines | -11 -10 -9 ---------- Run | Yrd Mat Mat Machines Disabled . | . . . Max in Single Turn . | . . . Machines Repaired . | . . . Machines Dismantled . | . . . Machines Sabotaged . | . . . Overloaded Fab Kills . | . . . Hacking | -11 -10 -9 --------- Run | Yrd Mat Mat Machines Accessed 5 | . 3 2 Terminals 5 | . 3 2 Fabricators . | . . . Repair Stations . | . . . Recycling Units . | . . . Scanalyzers . | . . . Garrison Access . | . . . Total Hacks 9 | . 6 3 Successful 4 | . 2 2 Failed 5 | . 4 1 Catastrophic 2 | . 2 . Database Lockouts . | . . . Manual 7 | . 4 3 Terminals 9 | . 6 3 Fabricators . | . . . Repair Stations . | . . . Recycling Units . | . . . Scanalyzers . | . . . Garrison Access . | . . . Terminal Hacks 2 | . 2 . Record 1 | . 1 . Hauler Manifests 1 | . 1 . Fabricator Hacks . | . . . Repair Station Hacks . | . . . Recycling Unit Hacks . | . . . Scanalyzer . | . . . Garrison Access Hacks . | . . . Unauthorized Hacks 2 | . . 2 Terminals 2 | . . 2 Assimilate 2 | . . 2 Fabricators . | . . . Repair Stations . | . . . Recycling Units . | . . . Scanalyzers . | . . . Garrison Access . | . . . Data Cores Recovered . | . . . Used . | . . . Hacking Detections 2 | . 1 1 Full Trace Events . | . . . Feedback Events . | . . . Feedback Blocked . | . . . Robot Schematics Acquired . | . . . Robots Built . | . . . Authchips . | . . . Time . | . . . Total Robot Build Rating . | . . . Part Schematics Acquired . | . . . Parts Built . | . . . Authchips . | . . . Time . | . . . Total Part Build Rating . | . . . Parts Repaired . | . . . Time . | . . . Parts Recycled . | . . . Recycled Matter . | . . . Retrieved Matter . | . . . Retrieved Components . | . . . Parts Scanalyzed . | . . . Part Schematics Acquired . | . . . Parts Damaged . | . . . Bothacking | -11 -10 -9 ------------ Run | Yrd Mat Mat Used RIF Installer . | . . . Robots Hacked . | . . . Non-combat . | . . . Combat . | . . . Robot Hacks Applied . | . . . Relay Couplers Released . | . . . Fabnet Peak Effective % . | . . . Robots Rewired . | . . . Allies Hacked . | . . . Hacks Repelled . | . . . Allies | -11 -10 -9 -------- Run | Yrd Mat Mat Total Allies . | . . . Largest Group . | . . . Highest-Rated Group . | . . . Highest-Rated Ally . | . . . Total Orders . | . . . Ally Attacks . | . . . Total Damage . | . . . Kills . | . . . Allies Corrupted . | . . . Allies Melted . | . . . Intel | -11 -10 -9 ------- Run | Yrd Mat Mat Robot Analysis Total . | . . . Derelict Logs Recovered . | . . . Drone Launches . | . . . Drone Recoveries . | . . . Exploration | -11 -10 -9 ------------- Run | Yrd Mat Mat Turns Passed 1427 | 110 719 598 Spaces Moved 637 | 64 403 170 Core 7 | 6 . 1 Treads 622 | 58 403 161 Legs . | . . . Wheels 8 | . . 8 Hover . | . . . Flight . | . . . Fastest Speed 50 | 50 160 135 Average Speed 170 | 149 160 202 Slowest Speed 1750 | 160 160 1750 Overloaded Moves . | . . . Propulsion Burnouts . | . . . Robots Hopped . | . . . Cave-ins Triggered . | . . . Exploration Rate (%) 36 | 5 76 29 Regions Visited 2 Branch Regions . Pre-discovered Areas . | . . . Known Exits Taken . | . . . Unknown Exits Taken 2 | 1 1 . Scrap Searched . | . . . Spaces Dug . | . . . Terrain Destroyed . | . . . Melee . | . . . Projectile . | . . . AOE . | . . . Terrain Rammed . | . . . Walls Destroyed . | . . . Machines Disabled . | . . . Actions | -11 -10 -9 --------- Run | Yrd Mat Mat Total 825 | 75 443 307 Wait 63 | . 6 57 Move 635 | 63 402 170 Hop . | . . . Pick Up 14 | 6 5 3 Fast Attach 14 | 6 6 2 Attach 10 | . 1 9 Detach 3 | . 1 2 Swap 5 | . 3 2 Drop 3 | . 3 . Fire 75 | . 16 59 Melee . | . . . Ram . | . . . Kick . | . . . Crush 3 | . . 3 Escape Stasis . | . . . Rewire . | . . . Trap . | . . . Miscellaneous . | . . . Route ------- -11/Scrapyard -10/Materials (discovered 2 exits: *Mat x2) -9/Materials History --------- Turn | Location | Event 44 | -11/Scrapyard | Discovered new exit (range 14) 111 | -11/Scrapyard | Entered Materials 303 | -10/Materials | Build established: Mutant 303 | -10/Materials | Discovered new exit (range 15) 548 | -10/Materials | Discovered new exit (range 7) 830 | -10/Materials | Entered another Materials area 830 | -9/Materials | Evolved 2 slots: Propulsion x2 1286 | -9/Materials | Lost 4 parts (1p1n1u1w) 1288 | -9/Materials | Destroyed 9 combat bots 1334 | -9/Materials | Core integrity fell below 50% 1351 | -9/Materials | Lost 3 parts (2n1w) 1428 | -9/Materials | Self-destructed Last Messages --------------- 01361_ R-06 Scavenger collects Imp. Assault Rifle. 01371_ Slammed into W-16 Scout. 01375_ K-01 Serf cleans the Processing Tank. 01406_ Lgt. Treads destroyed. 01407_ K-01 Serf cleans the Processing Tank. 01413_ Critical hit (Smash). 01413_ Lgt. Ion Engine destroyed. 01413_ System corrupted by crushing effect (+5). 01415_ Wheel destroyed. 01415_ System corrupted by crushing effect (+3). 01417_ K-01 Serf cleans the Processing Tank. 01418_ Knocked back. 01420_ Sml. Laser destroyed. 01425_ Critical hit (Smash). 01425_ Lgt. Assault Rifle destroyed. 01425_ System corrupted by crushing effect (+1). 01426_ System corrupted: Matter fused (-8). Map ----- +----------------------------------------------------+ | ?????????# #??# "R" # #??????? ????????? | | ?????????# #??# """ # #?????? #?????????? | | ?????????# #??#! # ####+## #?????????? | | ?????????# #??########## #?????????? | | ????????? #???????????# #?????????? | | ???????? #???????????# #?????????? | | ???????""" ????????????# ######/## #?????????? | | ???????T"" ????????????# # #????#?????????? | | ???????? ????????????# # """ #??????????????? | | ????????? ????????????# # """ #??????????????? | | ????????? ????????????# # """ #??????????????? | | ????????? ????????????# # #??????????????? | | ?????????? ????????????# # !#??????????????? | | ?????????????????????????# #+##+###??????????????? | | ?????????????????????????# # #????????????????? | | ?????????????????????????#*# #????????????????? | | ?????????????????????????#%# #?????#??????????? | | ???????????????????#######+#% ##### #??????????? | | ???????????????????# %+% "T" #??????????? | | ???????????????????# #%% #??????????? | | ???????????????????# """ # #??????????? | | ???????????????????# """ # """ #??????????? | | ???????????????????# """ # """ #??????????? | | ???????????????????######### """ #??????????? | | ?????????????????########### """ #??????????? | | ?????????? a@bg """ #??????????? | | ?????????? #??????????? | | ?????????? a k#??????????? | | ???????????##################### #??????????? | | ???????????????????????????????? #??????????? | | ???????????????????????????????? #??????????? | | ????????????????????????????????? #??????????? | | ????????????????????????????????? #??????????? | | ?????????????????????????????????? #??????????? | | ??????????????????????????????????? #??????????? | | ????????????????????????????????????? #??????????? | | ?????????????????????????????????????????????????? | | ?????????????????????????????????????????????????? | | ?????????????????????????????????????????????????? | | ?????????????????????????????????????????????????? | | ?????????????????????????????????????????????????? | | ?????????????????????????????????????????????????? | | ?????????????????????????????????????????????????? | | ?????????????????????????????????????????????????? | | ?????????????????????????????????????????????????? | | ?????????????????????????????????????????????????? | | ?????????????????????????????????????????????????? | | ?????????????????????????????????????????????????? | | ?????????????????????????????????????????????????? | | ?????????????????????????????????????????????????? | +----------------------------------------------------+ Best States ------------- Heat Dissipation 28 Energy Generation 10 Energy Capacity 125 Matter Stores 300 Matter Capacity 300 Sight Range 16 Terrain Scan Density 10 Armor Coverage 150 Evasion (%) 40 Recoil Reduction 3 Item Schematics ----------------- None Robot Schematics ------------------ None Fabricated ------------ Nothing Alien Tech Used ----------------- None Achievements -------------- None Challenges ------------ None Game ------ Seed AlphaReflectiveTriangulator Manual? 0 Play Time 00:13:24 Cumulative 24.8 hours Start 2024.04.12 @ 13:05:53 End 2024.04.12 @ 13:15:26 Sessions 1 Manual Loads 0 Difficulty Rogue Special Mode None Game No. 44 Rogue 44 Adventurer 0 Explorer 0 Win Type - Total 0 Types 0/0/0/0/0/0/0/0/0 Lore% 25 Gallery% 33 Achievement% 23 Wizard Run 0 Options --------- Layout 1 ASCII 0 Keyboard 1 Movement Arrows Keybinds 0 Fullscreen 1 Font 24/Smallcaps Map View 50x35 Zoom Use 0% Tactical HUD 1 Map Filters NONE Filters NONE Steam 1 RUN: f35d9fe1-ae6d-4dc5-8058-46ccb0a673dc